bitfinex/quotes_ETHUSD_20251127
["timestamp","ask_amount","ask_price","bid_price","bid_amount"]
[1764278240953,0.26984486,3041.9,3041.8,4.39773623]
[1764278241958,0.76054486,3041.9,3041.8,4.39773623]
[1764278242933,1.23964486,3041.9,3041.8,1.11020911]
[1764278243130,1.23964486,3041.9,3041.3,3.19552909]
[1764278243337,0.4791,3041.8,3041.2,4.11374715]
[1764278243563,0.4791,3041.8,3041.2,7.40192287]
[1764278243862,0.26984486,3041.9,3041.2,7.40192287]
[1764278243863,0.27184486,3041.9,3041.4,0.72559411]
[1764278244064,0.75094486,3041.9,3041.6,0.72559411]
[1764278244362,0.75094486,3041.9,3041.6,0.40211232]
[1764278244536,0.4907,3041.7,3041.5,0.72559411]
[1764278244736,0.4907,3041.6,3041.4,0.72559411]
[1764278244969,0.4907,3041.6,3041.4,4.0135536]
[1764278245147,0.9698,3041.5,3041.4,4.0135536]
[1764278245460,0.4907,3041.5,3041.4,0.72559411]
[1764278245671,0.9698,3041.5,3041.4,1.12695675]
[1764278246234,0.9698,3041.5,3041.4,4.41491624]
[1764278247865,0.4907,3041.5,3041.4,4.41491624]
[1764278248045,0.4907,3041.5,3041.4,5.03491624]
[1764278250059,0.75094486,3041.9,3041.4,11.93130482]
[1764278250258,0.75094486,3041.9,3041.5,1.19313048]
[1764278250573,0.75094486,3041.9,3041.6,3.19552909]
[1764278250777,0.27184486,3041.9,3041.7,0.1]
[1764278251957,0.27184486,3041.9,3041.7,6.67521283]
[1764278252185,0.27184486,3041.9,3041.7,3.38757763]
[1764278252489,0.27184486,3041.9,3041.7,4.49396829]
[1764278252983,0.27184486,3041.9,3041.8,0.3129]
[1764278253390,0.76254486,3041.9,3041.8,0.03287527]
[1764278253601,0.002,3042.3,3041.9,0.405504]
[1764278253763,0.002,3042.3,3042.2,4.8645272]
[1764278254108,0.002,3042.3,3042.2,8.90807478]
[1764278254257,0.002,3042.3,3042.2,6.21574569]
[1764278254458,0.002,3042.3,3042.2,9.41127478]
[1764278255765,0.002,3042.3,3042.2,5.90284569]
[1764278255969,0.002,3042.3,3042.2,8.90807478]
[1764278256693,0.4927,3042.3,3042.2,4.66114169]
[1764278256894,0.4927,3042.3,3042.2,0.72559411]
[1764278256895,0.9718,3042.3,3042.2,0.72559411]
[1764278257100,0.9718,3042.3,3042.2,4.01268897]
[1764278257970,0.002,3042.3,3042.2,4.32558897]
[1764278258170,0.002,3042.3,3042.2,4.83109297]
[1764278258370,0.002,3042.3,3042.2,6.00626562]
[1764278258696,0.002,3042.3,3042.2,6.31916562]
[1764278259376,0.4927,3042.3,3042.2,2.30627076]
[1764278259575,0.9718,3042.3,3042.2,0.72559411]
[1764278259982,0.002,3042.3,3042.2,7.82821806]
[1764278260170,0.4927,3042.3,3042.2,4.63268897]
[1764278260370,0.9612,3042.3,3042.2,4.63268897]
[1764278260570,0.4927,3042.3,3042.2,4.63268897]
[1764278260764,0.4927,3042.3,3042.2,5.76503969]
[1764278261403,0.4927,3042.3,3042.2,5.79791063]
[1764278261770,0.9612,3042.3,3042.2,5.76503969]
[1764278261994,0.9612,3042.3,3042.2,4.63268897]
[1764278263094,0.9612,3042.3,3042.2,4.66555991]
[1764278265817,0.4927,3042.3,3042.2,4.66555991]
[1764278266111,0.9612,3042.3,3042.2,4.63268897]
[1764278266616,0.002,3042.3,3042.2,5.10345991]
[1764278266785,0.002,3042.3,3042.2,6.27207902]
[1764278266982,0.002,3042.3,3042.2,6.37207902]
[1764278269400,0.002,3042.3,3042.2,6.27207902]
[1764278269720,0.002,3042.3,3042.2,6.37207902]
[1764278270816,0.002,3042.3,3042.2,6.77758302]
[1764278271026,0.002,3042.3,3042.2,7.05761208]
[1764278274230,0.002,3042.3,3042.2,6.74471208]
[1764278275233,0.002,3042.3,3042.2,7.05761208]
[1764278276301,0.002,3042.3,3042.2,6.74471208]
[1764278276934,0.002,3042.3,3042.2,6.30681208]
[1764278277504,0.9266,3042.3,3042.2,6.20681208]
[1764278277697,0.9266,3042.3,3042.2,6.41381208]
[1764278277928,0.4581,3042.3,3042.2,6.41381208]
[1764278279077,0.4581,3042.3,3042.2,6.44668302]
[1764278280668,0.4581,3042.3,3042.2,6.54668302]
[1764278281568,0.002,3042.3,3042.2,10.05511211]
[1764278281771,0.002,3042.3,3042.2,7.13961208]
[1764278281968,0.002,3042.3,3042.2,8.31830027]
[1764278282177,0.002,3042.3,3042.2,7.13961208]
[1764278282370,0.002,3042.3,3042.2,10.33514117]
[1764278282686,0.002,3042.6,3042.2,10.33514117]
[1764278282687,0.002,3042.6,3042.5,0.505504]
[1764278282845,0.002,3042.6,3042.5,4.35970079]
[1764278283042,0.002,3042.6,3042.5,8.16322691]
[1764278283247,0.002,3042.6,3042.5,9.64494584]
[1764278284976,0.002,3042.6,3042.5,9.02494584]
[1764278288501,0.30737448,3043.9,3043.7,0.405504]
[1764278288793,0.4685,3043.9,3043.8,0.72559411]
[1764278289179,0.9246,3043.9,3043.5,1.17821975]
[1764278289357,0.9246,3043.9,3043.6,0.72559411]
[1764278289358,0.4685,3043.9,3043.6,0.72559411]
[1764278289562,0.4685,3043.8,3043.6,3.9211232]
[1764278289760,0.4561,3043.7,3043.6,3.9211232]
[1764278290167,0.947,3043.7,3043.6,3.9211232]
[1764278291502,0.947,3043.7,3043.6,7.20670606]
[1764278293296,0.947,3043.7,3043.6,0.72559411]
[1764278294018,0.947,3043.7,3043.6,4.01117697]
[1764278294390,0.949,3043.7,3043.6,4.01117697]
[1764278295700,0.949,3043.7,3043.6,0.72559411]
[1764278296010,0.949,3043.7,3043.6,4.01117697]
[1764278296519,0.949,3043.7,3042.9,1.17821975]
[1764278296520,4.54115961,3043.7,3042.9,1.17821975]
[1764278296718,0.4992,3043.0,3042.7,3.28655148]
[1764278296918,0.6851,3042.8,3042.7,3.28655148]
[1764278297139,0.6851,3042.8,3042.6,3.28662846]
[1764278297421,0.9723,3042.7,3042.3,6.97947762]
[1764278297599,0.4992,3042.5,3042.4,1.23109811]
[1764278298006,0.9723,3042.5,3042.4,0.1]
[1764278298401,0.4992,3042.5,3042.4,0.505504]
[1764278298999,0.9723,3042.5,3042.4,1.23109811]
[1764278299897,0.9723,3042.5,3042.2,0.207]
[1764278300091,0.4731,3042.4,3042.3,4.01258092]
[1764278300517,0.4731,3042.7,3042.3,7.39956773]
[1764278300729,0.4731,3042.7,3042.4,0.13286878]
[1764278300948,0.4992,3042.5,3042.4,0.13286878]
[1764278301648,0.4992,3042.5,3042.4,0.75286878]
[1764278301945,0.9723,3042.5,3042.4,3.93974755]
[1764278302244,0.9723,3042.5,3042.4,4.03974755]
[1764278302448,0.4731,3043.1,3042.8,0.405504]
[1764278302618,0.4731,3043.1,3042.7,0.82559411]
[1764278302814,0.4992,3042.8,3042.7,0.1]
[1764278303049,0.4731,3043.1,3042.7,0.1]
[1764278303235,0.4731,3043.1,3042.8,0.13286446]
[1764278303440,0.4731,3043.1,3042.8,0.1]
[1764278303640,0.6855,3042.9,3042.8,0.1]
[1764278304161,1.1586,3042.9,3042.8,4.1120408]
[1764278306817,0.4992,3042.9,3042.8,4.14490526]
[1764278307125,0.4731,3043.2,3042.9,0.72559411]
[1764278307331,0.4731,3043.2,3043.0,0.0328623]
[1764278307543,0.4731,3043.2,3043.0,0.6528623]
[1764278307743,0.4992,3043.1,3043.0,0.7528623]
[1764278308796,0.4992,3043.1,3043.0,4.7646871]
[1764278309756,0.4992,3043.1,3043.0,1.37845641]
[1764278309757,0.9723,3043.1,3043.0,1.37845641]
[1764278310092,0.9723,3043.1,3043.0,4.6318248]
[1764278310291,0.9723,3043.1,3043.0,1.34559411]
[1764278310458,0.9723,3043.1,3043.0,4.6318248]
[1764278311258,0.9723,3043.1,3043.0,4.6646871]
[1764278311499,0.4992,3043.1,3043.0,4.6318248]
[1764278311687,0.4731,3043.4,3043.0,7.91805549]
[1764278311848,0.30711788,3043.3,3043.1,0.1]
[1764278312175,0.4731,3043.4,3043.1,0.1]
[1764278312368,0.4992,3043.2,3043.0,4.6318248]
[1764278312569,0.9723,3043.1,3043.0,4.7318248]
[1764278313278,0.9723,3043.1,3043.0,4.6318248]
[1764278314663,0.9723,3043.1,3043.0,1.34559411]
[1764278315494,0.9723,3043.1,3043.0,4.6318248]
[1764278316183,0.4731,3043.4,3043.1,0.72559411]
[1764278316388,0.30717179,3043.3,3043.1,1.34559411]
[1764278316571,0.4992,3043.2,3043.1,1.34559411]
[1764278317084,0.9723,3043.2,3043.1,4.63171681]
[1764278317475,0.9723,3043.2,3043.1,4.66457803]
[1764278317875,0.9723,3043.2,3043.1,0.62]
[1764278318071,0.9723,3043.2,3043.1,1.34559411]
[1764278318584,0.9723,3043.2,3043.1,4.63171681]
[1764278318788,0.9723,3043.2,3043.1,1.34559411]
[1764278320186,1.27961233,3043.2,3043.1,4.63171681]
[1764278320486,0.9723,3043.2,3043.1,4.63171681]
[1764278321062,0.9723,3043.2,3043.1,1.34559411]
[1764278321486,1.27967528,3043.2,3043.1,1.34559411]
[1764278322361,1.27967528,3043.2,3043.1,4.63171681]
[1764278322861,1.27967528,3043.2,3043.1,1.34559411]
[1764278323060,1.27967528,3043.2,3043.1,0.62]
[1764278323265,4.56569,3043.2,3043.1,0.62]
[1764278323492,1.73624428,3043.2,3043.1,0.62]
[1764278325190,1.27967528,3043.2,3043.1,0.62]
[1764278325919,1.28005014,3043.2,3043.1,0.62]
[1764278328317,1.28005014,3043.2,3042.9,0.72559411]
[1764278328487,0.4834,3043.0,3042.9,0.72559411]
[1764278328691,0.79115014,3043.0,3042.9,0.72559411]
[1764278328915,1.26715014,3043.0,3042.7,4.66494488]
[1764278329223,0.4834,3042.8,3042.7,4.76494488]
[1764278329427,0.79115014,3042.8,3042.7,4.76494488]
[1764278330725,0.30775014,3042.8,3042.7,5.07784488]
[1764278330894,0.30775014,3042.8,3042.7,6.03211469]
[1764278331404,0.30775014,3042.8,3042.7,6.59033444]
[1764278333045,0.002,3043.2,3043.0,0.1]
[1764278333247,0.30800759,3043.1,3043.0,0.1]
[1764278333420,0.30800759,3043.1,3043.0,4.4575871]
[1764278333621,0.30800759,3043.1,3043.0,5.35011065]
[1764278335001,0.30800759,3043.1,3043.0,5.03721065]
[1764278335200,1.26740759,3043.1,3043.0,4.90434835]
[1764278336036,1.26740759,3043.1,3043.0,4.0118248]
[1764278338017,0.79140759,3043.1,3043.0,4.0118248]
[1764278338227,0.30800759,3043.1,3043.0,5.53890087]
[1764278339361,0.002,3043.2,3043.1,0.72559411]
[1764278339569,0.30996097,3043.2,3043.1,0.72559411]
[1764278339938,0.79336097,3043.2,3043.1,4.01171681]
[1764278340672,0.30996097,3043.2,3043.1,4.01171681]
[1764278340858,0.30996097,3043.2,3043.1,4.86964294]
[1764278342133,0.30996097,3043.2,3043.1,5.34040416]
[1764278342339,0.002,3043.2,3043.1,7.34012193]
[1764278342547,0.002,3043.2,3043.1,6.12594694]
[1764278342779,0.002,3043.2,3043.1,7.92613778]
[1764278342972,0.002,3043.2,3043.1,7.89327656]
[1764278345386,0.002,3043.2,3043.1,6.12594694]
[1764278345587,0.002,3043.2,3043.1,6.15880816]
[1764278345791,0.002,3043.2,3043.1,7.92613778]
[1764278345974,0.002,3043.2,3043.1,7.89327656]
[1764278346414,0.002,3043.2,3043.1,6.12594694]
[1764278346714,0.002,3043.2,3043.1,7.61323778]
[1764278346885,0.002,3043.2,3043.1,6.12594694]
[1764278347080,0.002,3043.2,3043.1,6.15880816]
[1764278352382,0.002,3043.2,3043.1,6.12594694]
[1764278352586,0.002,3043.5,3043.1,12.86261108]
[1764278352785,0.002,3043.5,3043.4,6.42363767]
[1764278353019,0.002,3043.5,3043.4,6.45649565]
[1764278353219,0.002,3043.5,3043.4,5.47835391]
[1764278353830,0.002,3043.5,3043.4,5.44549593]
[1764278355415,0.002,3043.5,3043.4,10.49613314]
[1764278355615,0.002,3043.5,3043.4,12.08766816]
[1764278356360,0.002,3043.5,3043.4,10.32282972]
[1764278356529,0.002,3043.5,3043.4,12.16440562]
[1764278356859,0.002,3043.5,3043.4,11.85150562]
[1764278357217,0.002,3043.5,3043.4,12.16440562]
[1764278358049,0.4636,3043.5,3043.4,11.74560562]
[1764278358418,0.002,3043.5,3043.4,11.74560562]
[1764278358816,0.9389,3043.5,3043.4,9.29869068]
[1764278359043,0.4636,3043.5,3043.4,10.58230943]
[1764278359246,0.002,3043.5,3043.4,10.68230943]
[1764278359417,0.002,3043.5,3043.4,9.50569068]
[1764278359820,0.002,3043.5,3043.4,10.68272613]
[1764278360048,0.4636,3043.5,3043.4,10.68272613]
[1764278360436,0.4636,3043.5,3043.4,9.50569068]
[1764278362253,0.002,3043.5,3043.4,9.81859068]
[1764278362752,0.002,3043.5,3043.4,11.58320562]
[1764278366550,0.9389,3043.5,3043.4,11.27030562]
[1764278366859,0.4636,3043.5,3043.4,11.89030562]
[1764278367033,0.9389,3043.5,3043.4,11.89030562]
[1764278367236,0.9389,3043.5,3043.4,11.68330562]
[1764278368364,0.002,3043.5,3043.4,11.99620562]
[1764278369258,0.002,3043.5,3043.4,10.23159068]
[1764278372574,0.002,3043.5,3043.4,10.54449068]
[1764278372767,0.002,3043.5,3043.4,10.74029068]
[1764278375098,0.002,3043.5,3043.4,10.42739068]
[1764278375382,1e-08,3043.6,3043.5,4.82968892]
[1764278375580,1e-08,3043.6,3043.5,6.95343377]
[1764278375770,1e-08,3043.6,3043.5,6.92057687]
[1764278376789,1e-08,3043.6,3043.5,7.36055949]
[1764278376994,1e-08,3043.6,3043.5,8.27687179]
[1764278382915,1e-08,3043.6,3043.5,7.08297687]
[1764278383121,0.47060001,3043.6,3043.5,6.97707687]
[1764278383728,1e-08,3043.6,3043.5,6.97707687]
[1764278385223,1e-08,3043.6,3043.5,9.33781106]
[1764278385424,1e-08,3043.6,3043.5,9.13081106]
[1764278385636,1e-08,3043.6,3043.5,9.33781106]
[1764278385997,1e-08,3043.6,3043.5,9.65071106]
[1764278386333,1e-08,3043.6,3043.5,9.96361106]
[1764278386628,0.002,3044.0,3043.9,0.497794]
[1764278386828,0.002,3044.0,3043.9,7.71231156]
[1764278387130,0.002,3044.0,3043.9,9.83391492]
[1764278387338,0.002,3044.0,3043.9,10.31511492]
[1764278388209,0.1958,3045.0,3044.0,1.13109811]
[1764278388210,0.4812,3044.7,3044.0,1.13109811]
[1764278388407,0.677,3045.0,3044.9,0.09929]
[1764278388608,0.1897,3046.1,3045.0,1.13109811]
[1764278388909,0.4812,3045.6,3045.5,0.09929]
[1764278389231,0.4812,3045.6,3045.5,0.207]
[1764278389232,0.4706,3045.6,3045.5,0.207]
[1764278389527,0.9518,3045.6,3045.5,0.207]
[1764278389830,0.9518,3045.6,3045.3,0.207]
[1764278390022,0.1897,3046.1,3045.3,0.612504]
[1764278390023,0.4706,3045.4,3045.3,0.612504]
[1764278390516,0.9518,3045.4,3045.3,4.41484683]
[1764278390719,0.9518,3045.4,3045.3,4.00934283]
[1764278394334,0.4812,3045.8,3045.4,0.72559411]
[1764278394632,0.4812,3046.0,3045.5,3.28353308]
[1764278394831,0.30646806,3045.9,3045.5,3.28353308]
[1764278395058,0.4706,3045.6,3045.5,4.00912719]
[1764278395435,0.9518,3045.6,3045.5,4.10841719]
[1764278398860,0.9518,3045.6,3045.5,4.00912719]
[1764278399645,0.9518,3045.6,3045.5,4.10841719]
[1764278401464,0.4706,3045.6,3045.5,4.10841719]
[1764278401766,0.9518,3045.6,3045.5,4.10841719]
[1764278404058,0.9538,3045.6,3045.5,4.00912719]
[1764278404841,0.9538,3045.6,3045.2,3.28382903]
[1764278405043,0.9538,3045.6,3045.3,0.72559411]
[1764278405044,0.4812,3045.5,3045.3,0.72559411]
[1764278405273,0.4706,3045.3,3045.2,0.72559411]
[1764278405580,0.7771358,3045.3,3044.6,3.28446711]
[1764278405754,0.4812,3045.2,3044.7,0.75843806]
[1764278405957,0.85768764,3045.2,3044.8,0.09929]
[1764278406473,0.6689,3044.9,3044.8,0.09929]
[1764278406971,1.1501,3044.9,3044.8,0.09929]
[1764278407953,1.1501,3044.9,3044.8,4.10917207]
[1764278408571,1.1501,3044.9,3044.8,4.51467607]
[1764278408572,0.4706,3044.9,3044.8,4.51467607]
[1764278408788,0.1983,3045.1,3044.9,1.13109811]
[1764278408964,0.1983,3045.1,3045.0,4.04798361]
[1764278409492,1.1501,3045.1,3045.0,7.33205585]
[1764278409639,1.1501,3045.1,3045.0,7.29921513]
[1764278409844,1.1501,3045.1,3045.0,4.10895635]
[1764278410473,1.1501,3045.1,3045.0,7.29921513]
[1764278411374,1.1501,3045.1,3045.0,7.91921513]
[1764278412490,0.002,3045.6,3045.4,0.09929]
[1764278412650,0.002,3045.6,3045.2,0.405504]
[1764278412651,0.3068334,3045.5,3045.2,0.405504]
[1764278412852,0.002,3045.6,3045.3,0.504794]
[1764278412853,0.3068334,3045.4,3045.3,0.504794]
[1764278413374,1.2530334,3045.4,3045.3,0.504794]
[1764278414364,1.2530334,3045.4,3045.3,3.78854272]
[1764278416186,1.2530334,3045.4,3045.0,0.62]
[1764278416372,0.4861,3045.1,3045.0,0.62]
[1764278416678,0.7929334,3045.1,3045.0,0.62]
[1764278416981,1.2530334,3045.1,3045.0,1.34559411]
[1764278417156,1.2530334,3045.1,3045.0,0.62]
[1764278417358,1.2530334,3045.1,3044.7,3.90431037]
[1764278417569,0.4601,3045.0,3044.7,3.93715432]
[1764278417776,0.6726,3044.8,3044.7,4.66274843]
[1764278418164,1.1327,3044.8,3044.7,4.66274843]
[1764278418490,1.1327,3044.8,3044.7,4.62990448]
[1764278420092,1.1327,3044.8,3044.7,4.66274843]
[1764278420269,0.6726,3044.8,3044.7,4.66274843]
[1764278420471,0.4861,3044.8,3044.7,4.66274843]
[1764278420773,0.4861,3044.8,3044.7,5.70527997]
[1764278421813,0.4861,3044.8,3044.7,4.76203843]
[1764278423269,0.4861,3044.8,3044.7,4.14203843]
[1764278423773,0.9462,3044.8,3044.7,4.14203843]
[1764278423981,0.9462,3044.8,3044.7,4.04274843]
[1764278424792,0.4861,3044.8,3044.7,4.14203843]
[1764278425792,0.9462,3044.8,3044.7,4.14203843]
[1764278425993,0.9462,3044.8,3044.7,4.10919448]
[1764278426290,0.4861,3044.8,3044.7,4.00990448]
[1764278426495,0.9462,3044.8,3044.7,4.00990448]
[1764278427289,1.25353887,3044.8,3044.7,4.00990448]
[1764278427677,1.25353887,3044.8,3044.7,0.72559411]
[1764278429869,1.25353887,3044.8,3044.6,0.001]
[1764278430070,1.25353887,3044.7,3044.6,0.001]
[1764278430471,1.25355144,3044.7,3044.6,0.001]
[1764278431975,0.79345144,3044.7,3044.6,0.001]
[1764278432183,1.25355144,3044.7,3044.6,0.10029]
[1764278434114,1.25355144,3044.7,3044.6,3.38479371]
[1764278436309,1.25355144,3044.7,3044.6,3.28550371]
[1764278438389,0.30735144,3044.7,3044.6,3.28550371]
[1764278438885,0.30735144,3044.7,3044.6,3.41763874]
[1764278440189,0.30735144,3044.7,3044.6,3.73053874]
[1764278440388,0.6843,3045.2,3044.7,0.405504]
[1764278440588,0.30733095,3045.1,3044.9,0.09929]
[1764278440788,0.6843,3045.2,3044.9,0.09929]
[1764278440984,0.30732872,3045.1,3044.9,0.09929]
[1764278441190,0.1945,3045.2,3044.9,0.09929]
[1764278441424,0.30734384,3045.1,3044.9,0.09929]
[1764278441623,0.4957,3045.0,3044.9,0.09929]
[1764278442133,0.4957,3045.0,3044.9,4.10906421]
[1764278442707,0.9855,3045.0,3044.9,4.10906421]
[1764278443202,1.29284806,3045.0,3044.9,4.10906421]
[1764278443822,1.29284806,3045.0,3044.9,0.72559411]
[1764278443823,0.80304806,3045.0,3044.9,0.72559411]
[1764278444117,1.29284806,3045.0,3044.9,0.72559411]
[1764278444326,1.29284806,3045.0,3044.9,4.00977421]
[1764278445302,1.29282957,3045.0,3044.9,4.00977421]
[1764278445729,1.29282957,3045.0,3044.9,0.72559411]
[1764278445896,1.29282957,3045.0,3044.8,0.62]
[1764278446096,1.27292957,3044.9,3044.8,0.62]
[1764278446790,1.27292957,3044.9,3044.8,4.62988207]
[1764278447125,1.27292957,3044.9,3044.8,0.72559411]
[1764278447305,1.27292957,3044.9,3044.8,4.00988207]
[1764278449325,1.27292957,3044.9,3044.8,0.72559411]
[1764278451106,1.27292957,3044.9,3044.8,4.00988207]
[1764278451826,0.78312957,3044.9,3044.8,4.00988207]
[1764278452502,1.27292957,3044.9,3044.8,4.00988207]
[1764278453034,0.78312957,3044.9,3044.8,4.00988207]
[1764278453748,0.78312957,3044.9,3044.8,4.04272494]
[1764278454404,0.78312957,3044.9,3044.8,4.00988207]
[1764278455816,1.27292957,3044.9,3044.8,4.00988207]
[1764278456963,1.27292957,3044.9,3044.8,0.72559411]
[1764278457142,1.27292957,3044.9,3044.8,4.00988207]
[1764278457552,1.27292957,3044.9,3044.8,0.72559411]
[1764278457925,1.27292957,3044.9,3044.8,4.00988207]
[1764278459630,0.78312957,3044.9,3044.8,4.00988207]
[1764278459829,0.78312957,3044.9,3044.8,4.01088207]
[1764278460047,0.30732957,3044.9,3044.8,4.01088207]
[1764278460357,0.30732957,3044.9,3044.8,4.35662494]
[1764278460562,0.1945,3045.2,3044.8,4.35662494]
[1764278460563,0.1945,3045.2,3044.9,0.09929]
[1764278460758,0.30748222,3045.1,3044.9,0.09929]
[1764278460960,0.30748222,3045.0,3044.9,0.504794]
[1764278461158,0.30748222,3045.0,3044.9,2.63891169]
[1764278461330,0.002,3045.6,3044.9,2.22672169]
[1764278461529,0.4898,3045.3,3044.9,1.33809811]
[1764278461730,0.3075434,3045.2,3045.0,3.28407224]
[1764278461968,0.3075434,3045.1,3045.0,3.28407224]
[1764278462368,0.8032434,3045.1,3045.0,3.28407224]
[1764278462867,1.2930434,3045.1,3045.0,3.28407224]
[1764278463063,1.2930434,3045.1,3044.9,4.21674006]
[1764278463268,1.2731434,3045.0,3044.9,4.21674006]
[1764278464169,0.7833434,3045.0,3044.9,4.21674006]
[1764278464467,0.3075434,3045.0,3044.9,4.56248186]
[1764278464663,0.3075434,3045.0,3044.9,4.66177186]
[1764278465565,0.3075434,3045.0,3044.9,4.45477186]
[1764278466568,0.3075434,3045.0,3044.9,4.10903006]
[1764278468447,0.3075434,3045.0,3044.9,4.42193006]
[1764278468655,0.3075434,3045.0,3044.9,4.10903006]
[1764278468830,0.3075434,3045.0,3044.9,4.14187186]
[1764278469026,0.3075434,3045.0,3044.9,4.45477186]
[1764278469231,0.3075434,3045.0,3044.9,5.63364765]
[1764278470172,0.3075434,3045.0,3044.9,6.60823978]
[1764278470665,0.002,3045.6,3045.2,0.09929]
[1764278470666,0.4683,3045.6,3045.2,0.09929]
[1764278470846,0.30782336,3045.5,3045.2,0.09929]
[1764278471035,0.465,3045.3,3045.2,0.09929]
[1764278471237,0.77282336,3045.3,3045.2,0.09929]
[1764278471470,1.26942336,3045.3,3045.2,0.09929]
[1764278471782,1.26942336,3045.3,3044.9,5.59654704]
[1764278472080,0.4838,3045.0,3044.9,5.19104304]
[1764278472275,0.79162336,3045.0,3044.9,5.39804304]
[1764278473286,0.79162336,3045.0,3044.9,5.49733304]
[1764278473579,0.30782336,3045.0,3044.9,5.49733304]
[1764278475078,1.28822336,3045.0,3044.9,1.18130298]
[1764278475281,1.28822336,3045.0,3044.9,4.21677421]
[1764278476972,1.28822336,3045.0,3044.9,0.72559411]
[1764278477882,1.28822336,3045.0,3044.9,4.00977421]
[1764278478040,1.28822336,3045.0,3044.9,0.72559411]
[1764278478247,4.57234083,3045.0,3044.8,0.001]
[1764278478580,2.45916145,3044.9,3044.8,0.001]
[1764278478747,1.67352336,3044.9,3044.8,0.001]
[1764278479550,1.67352336,3044.9,3044.6,0.001]
[1764278479551,0.1,3044.7,3044.6,0.001]
[1764278479766,4.08007101,3044.7,3044.6,0.001]
[1764278479967,1.28822336,3044.7,3044.6,0.001]
[1764278480191,1.49522336,3044.7,3044.6,0.001]
[1764278480342,4.94727153,3044.7,3044.6,0.001]
[1764278481326,4.74027153,3044.7,3044.6,0.001]
[1764278481448,4.94727153,3044.7,3044.6,0.001]
[1764278482239,4.74027153,3044.7,3044.6,0.001]
[1764278482438,4.94727153,3044.7,3044.6,0.001]
[1764278482657,4.74027153,3044.7,3044.6,0.001]
[1764278486280,1.4558757,3044.7,3044.6,0.001]
[1764278486980,0.79162336,3044.7,3044.6,0.001]
[1764278487478,1.28822336,3044.7,3044.6,0.001]
[1764278488581,0.79162336,3044.7,3044.6,0.001]
[1764278488780,1.28700205,3044.7,3044.6,0.001]
[1764278491768,1.28701148,3044.7,3044.6,0.001]
[1764278492875,1.28701148,3044.7,3044.6,0.3139]
[1764278492876,0.30661148,3044.7,3044.6,0.3139]
[1764278493395,0.30661148,3044.7,3044.6,0.001]
[1764278493594,1.28701148,3044.7,3044.6,0.001]
[1764278493893,4.57140731,3044.7,3044.6,0.001]
[1764278494094,5.69395191,3044.7,3044.6,0.001]
[1764278495288,6.51954602,3044.7,3044.6,0.001]
[1764278495594,9.70799367,3044.7,3044.6,0.001]
[1764278496185,9.83958971,3044.7,3044.6,0.001]
[1764278499767,0.72559411,3044.6,3044.5,0.001]
[1764278499994,3.14743116,3044.6,3044.5,0.001]
[1764278501089,6.43193487,3044.6,3044.5,0.001]
[1764278501290,6.56354693,3044.6,3044.5,0.001]
[1764278503206,6.96905093,3044.6,3044.5,0.001]
[1764278503404,0.988504,3044.1,3043.6,0.001]
[1764278503604,4.59804176,3043.7,3043.6,0.001]
[1764278503805,5.50215324,3043.7,3043.6,0.001]
[1764278504015,5.63379692,3043.7,3043.6,0.001]
[1764278505119,8.91927183,3043.7,3043.6,0.001]
[1764278505306,10.1526014,3043.7,3043.6,0.001]
[1764278506017,9.6470974,3043.7,3043.6,0.001]
[1764278506219,9.7470974,3043.7,3043.6,0.001]
[1764278507318,9.7470974,3043.7,3043.1,0.001]
[1764278507319,0.4901,3043.1,3042.6,0.001]
[1764278507519,8.7557974,3043.7,3042.0,0.001]
[1764278507520,6.4768953,3042.1,3042.0,0.001]
[1764278507723,0.72559411,3042.0,3041.7,0.001]
[1764278508023,4.91494576,3041.8,3041.7,0.001]
[1764278508221,4.91494576,3041.8,3041.5,0.001]
[1764278508222,5.22155724,3041.8,3041.5,0.001]
[1764278508425,4.49544176,3041.6,3041.5,0.001]
[1764278508626,2.77497073,3041.6,3041.5,0.001]
[1764278508801,2.11110559,3041.6,3041.5,0.001]
[1764278509612,5.39884888,3041.6,3041.5,0.001]
[1764278513735,5.71774888,3041.6,3041.5,0.001]
[1764278514734,0.30661148,3041.6,3041.5,0.3199]
[1764278514946,0.208,3041.6,3041.5,0.3199]
[1764278515110,0.208,3041.6,3041.5,0.6388]
[1764278515437,0.30661148,3041.8,3041.5,0.3199]
[1764278515636,0.208,3042.0,3041.8,0.3189]
[1764278516044,0.208,3042.0,3041.9,0.3189]
[1764278521356,0.5116785,3042.0,3041.9,0.3189]
[1764278521530,3.79898947,3042.0,3041.9,0.3189]
[1764278522215,4.29448947,3042.0,3041.5,0.001]
[1764278522420,1.23082745,3041.9,3041.5,0.001]
[1764278522632,0.3036785,3041.8,3041.5,0.001]
[1764278523226,0.92714895,3041.9,3041.5,0.001]
[1764278523432,0.3039975,3041.8,3041.5,0.001]
[1764278523650,0.3039975,3041.7,3041.5,0.001]
[1764278523842,0.208,3041.6,3041.5,0.001]
[1764278524233,0.208,3041.6,3041.5,0.3199]
[1764278524950,0.002,3042.1,3041.5,0.6388]
[1764278525136,0.51238075,3042.0,3041.5,0.3199]
[1764278525456,0.30438075,3041.9,3041.6,0.3189]
[1764278525642,0.30438075,3041.8,3041.6,0.3189]
[1764278525843,0.30438075,3041.7,3041.6,0.3189]
[1764278526352,0.30438075,3041.7,3041.6,0.6378]
[1764278527254,0.30438075,3041.7,3041.6,0.3189]
[1764278528438,0.30438075,3041.7,3041.6,0.6378]
[1764278530232,0.30438075,3041.7,3041.6,3.92554329]
[1764278530458,0.30438075,3041.7,3041.5,0.001]
[1764278530656,0.30438075,3041.6,3041.5,0.001]
[1764278531068,0.30438075,3041.6,3041.5,0.3199]
[1764278531564,0.30438075,3041.6,3041.5,0.6388]
[1764278532032,0.30438075,3041.6,3041.5,0.73809]
[1764278532228,0.30438075,3041.6,3041.5,1.95086296]
[1764278532438,0.30610314,3041.6,3041.5,1.95086296]
[1764278532756,0.002,3042.1,3041.6,0.09929]
[1764278532956,0.002,3042.1,3042.0,0.3189]
[1764278533281,0.30808858,3042.1,3042.0,0.3189]